[Event "Reykjavik Open 2024"]
[Site "Reykjavik"]
[Date "2024.03.16"]
[Round "3.3"]
[White "Maze, Sebastien"]
[Black "Haldorsen, Benjamin"]
[Result "1/2-1/2"]
[ECO "C76"]
[WhiteElo "2551"]
[BlackElo "2426"]
[Annotator "TA"]
[PlyCount "80"]
[EventDate "2024.03.12"]
[EventCountry "ISL"]
[SourceTitle "playchess.com"]
[Source "ChessBase"]
[SourceQuality "1"]
[TimeControl "40/5400+30:1800+30"]

{[%evp 13,80,31,27,18,10,14,30,21,19,16,34,39,28,23,30,12,27,27,25,26,41,33,34,33,27,20,36,25,34,0,0,0,0,0,0,-14,-21,0,0,0,0,-98,-63,-62,-75,-134,-115,-133,0,0,0,0,0,0,0,0,0,0,0,0,0,0,0,0,0,0,0,0,0]} 1. e4 {[%emt 0:00:41]} e5 {[%emt 0:00:36]} 2. Nf3 {[%emt 0:00:09]} Nc6 {[%emt 0:00:20]} 3. Bb5 {[%emt 0:00:16]} a6 {[%emt 0:00:23]} 4. Ba4 {[%emt 0:00:07]} d6 {[%emt 0:00:12]} 5. c3 {[%emt 0:01:44]} Bd7 {[%emt 0:00:56]} 6. d4 {[%emt 0:01:39]} g6 {[%emt 0:00:58]} 7. Bg5 {[%emt 0:01:02]} Be7 {[%emt 0:01:20]} 8. Bxe7 {[%emt 0:05:12]} Qxe7 {[%emt 0:03:39]} 9. O-O {[%emt 0:06:56]} Nf6 {[%emt 0:01:52]} 10. Nbd2 {[%emt 0:00:45] White has an edge.} O-O {[%emt 0:03:11]} 11. Re1 {[%emt 0:01:54]} Rfe8 {[%emt 0:06:45]} 12. a3 {[%emt 0:04:29]} Nh5 {[%emt 0:06:04]} 13. g3 {[%emt 0:28:53]} b5 {[%emt 0:10:24]} 14. Bb3 {[%emt 0:04:02]} Qf6 {[%emt 0:09:14]} 15. d5 {[%emt 0:00:33]} Na5 {[%emt 0:01:00]} 16. Ba2 {[%emt 0:03:40]} c5 {[%emt 0:02:48]} 17. dxc6 {[%emt 0:02:08]} Bxc6 {[%emt 0:00:08]} 18. b4 {[%emt 0:00:42]} Nb7 {[%emt 0:00:35]} 19. c4 {[%emt 0:06:43]} Qe7 {[%emt 0:10:10]} 20. Rc1 {[%emt 0:00:54] [#] And now cxb5 would win.} Rec8 {[%emt 0:00:36]} 21. Re3 {[%emt 0:06:21]} Nf6 {[%emt 0:02:04]} 22. Qe2 {[%emt 0:00:58]} Kg7 {[%emt 0:02:28]} 23. Rec3 {[%emt 0:00:18]} Bd7 {[%emt 0:10:48]} 24. cxb5 {[%emt 0:04:37]} Rxc3 {[%emt 0:00:34]} 25. Rxc3 {[%emt 0:00:01]} Bxb5 {[%emt 0:00:36]} 26. Qd1 {[%emt 0:01:03]} Nd8 {[%emt 0:01:21]} 27. a4 {[%emt 0:08:15]} (27. Bd5 $11 {remains equal.} Rb8 28. Ba2) 27... Be8 {[%emt 0:01:30]} 28. Bc4 {[%emt 0:01:53]} Rb8 {[%emt 0:01:44]} 29. Qb1 {[%emt 0:00:56]} (29. Qb3 $142) 29... Bxa4 $17 {[%emt 0:10:41]} 30. Bxa6 {[%emt 0:00:03] [#]} d5 {[%emt 0:01:55]} (30... Qa7 $1 $17 {[%cal Ra7a6]} 31. b5 Ne6) 31. b5 $11 {[%emt 0:00:57] The position is equal.} dxe4 {[%emt 0:00:53]} 32. Nxe4 {[%emt 0:00:44]} Nxe4 {[%emt 0:02:55]} 33. Qxe4 {[%emt 0:00:01]} Bxb5 {[%emt 0:00:12]} 34. Qb1 $1 {[%emt 0:00:03]} Qf6 {[%emt 0:00:52]} 35. Bxb5 {[%emt 0:00:28] Rb3 would now be deadly.} e4 {[%emt 0:00:12]} 36. Rb3 {[%emt 0:05:16]} exf3 {[%emt 0:01:32]} 37. Qd1 {[%emt 0:00:07]} Qe5 {[%emt 0:04:32]} 38. Bc4 {[%emt 0:00:37]} Rxb3 {[%emt 0:01:04]} 39. Bxb3 {[%emt 0:00:08]} Ne6 {[%emt 0:02:12]} 40. Bxe6 {[%emt 0:00:26]} Qxe6 {[%emt 0:00:12] Weighted Error Value: White=0.10 (very precise) /Black=0.09 (flawless) .  Mistake:       	White=2     	Black=1      Inaccurate:     	White=1     	Black=1      OK:         	White=14    	Black=14     Best:        	White=1     	Black=1      Strong:       	White=1     	---} 1/2-1/2

[Event "Reykjavik Open 2024"]
[Site "Reykjavik"]
[Date "2024.03.16"]
[Round "3.4"]
[White "Balakrishnan, Praveen"]
[Black "Garifullina, Leya"]
[Result "1/2-1/2"]
[ECO "E51"]
[WhiteElo "2490"]
[BlackElo "2413"]
[Annotator "TA"]
[PlyCount "45"]
[EventDate "2024.03.12"]
[EventCountry "ISL"]
[SourceTitle "playchess.com"]
[Source "ChessBase"]
[SourceQuality "1"]
[TimeControl "40/5400+30:1800+30"]

{[%evp 12,45,0,-2,7,-8,8,0,9,0,22,8,20,8,8,13,14,0,17,8,43,0,0,0,0,-16,0,0,0,0,0,-10,0,0,0,6]} 1. d4 {[%emt 0:15:30]} Nf6 {[%emt 0:00:08]} 2. c4 {[%emt 0:00:06]} e6 {[%emt 0:00:11]} 3. Nf3 {[%emt 0:00:05]} d5 {[%emt 0:00:07]} 4. Nc3 {[%emt 0:00:05]} Bb4 {[%emt 0:00:08]} 5. e3 {[%emt 0:00:10]} O-O {[%emt 0:00:21]} 6. Bd2 {[%emt 0:00:05]} Nbd7 {[%emt 0:00:59][%cal Bb8d7,Bd7b6,Bb6d5][%mdl 32]} 7. a3 {[%emt 0:00:53]} Be7 {[%emt 0:00:16]} 8. Qc2 {[%emt 0:00:47]} dxc4 {[%emt 0:05:11]} 9. Bxc4 {[%emt 0:00:24]} c5 {[%emt 0:00:20]} 10. O-O {[%emt 0:02:34]} cxd4 {[%emt 0:09:55]} 11. exd4 {[%emt 0:11:38]} Nb6 {[%emt 0:02:27]} 12. Ba2 {[%emt 0:03:53]} Bd7 {[%emt 0:02:48]} 13. Ne5 {[%emt 0:04:10]} Rc8 {[%emt 0:04:06]} 14. Rfe1 {[%emt 0:09:58]} Bc6 {[%emt 0:02:35]} (14... Bb5 $5) 15. Qd3 {[%emt 0:02:57]} Nbd5 {[%emt 0:01:39]} 16. Bg5 {[%emt 0:08:38]} Nd7 {[%emt 0:15:47] [#] And now ...Nxe5 would win. The position is equal.} 17. Nxc6 {[%emt 0:11:05]} bxc6 {[%emt 0:01:42]} 18. Bd2 {[%emt 0:02:54]} N7f6 {[%emt 0:01:39][%cal Bd7f6,Bf6d5,Bd5b6][%mdl 32]} 19. Rac1 {[%emt 0:04:20]} Nxc3 {[%emt 0:06:29]} 20. Rxc3 {[%emt 0:00:42]} Nd5 {[%emt 0:03:23]} 21. Rc4 {[%emt 0:03:50]} Nb6 {[%emt 0:03:48]} 22. Rc3 {[%emt 0:02:27]} Bf6 {[%emt 0:03:33]} 23. Be3 {[%emt 0:01:20] An uneventful encounter.   Weighted Error Value: White=0.08 (flawless) /Black=0.09 (flawless) .  Inaccurate:     	White=1     	Black=1      OK:         	White=7     	Black=3} 1/2-1/2

[Event "Reykjavik Open 2024"]
[Site "Reykjavik"]
[Date "2024.03.16"]
[Round "3.5"]
[White "Sushanth Kamabathula"]
[Black "Cramling Bellon, Anna"]
[Result "1-0"]
[ECO "B32"]
[WhiteElo "1918"]
[BlackElo "2115"]
[Annotator "NA RC"]
[PlyCount "75"]
[EventDate "2024.03.12"]
[EventCountry "ISL"]
[SourceTitle "playchess.com"]
[Source "ChessBase"]
[SourceQuality "1"]
[TimeControl "40/5400+30:1800+30"]

1. e4 {[%emt 0:00:25]} c5 {[%emt 0:00:04]} 2. Nf3 {[%emt 0:00:08]} Nc6 {[%emt 0:00:12]} 3. d4 {[%emt 0:00:07]} cxd4 {[%emt 0:00:22]} 4. Nxd4 {[%emt 0:00:07]} e5 {[%emt 0:00:12]} 5. Nb5 {[%emt 0:00:06]} a6 {[%emt 0:00:19]} 6. Nd6+ {[%emt 0:00:05]} Bxd6 {[%emt 0:00:04]} 7. Qxd6 {[%emt 0:00:09]} Qe7 {[%emt 0:00:18]} 8. Qd1 {[%emt 0:00:41]} Nf6 {[%emt 0:02:51]} 9. Nc3 {[%emt 0:00:07]} d6 {[%emt 0:00:17]} 10. Bg5 {[%emt 0:00:15]} Be6 {[%emt 0:00:11]} 11. Nd5 {[%emt 0:00:05]} Bxd5 {[%emt 0:00:23]} 12. exd5 {[%emt 0:00:06]} Nb8 {[%emt 0:00:13]} 13. Be2 {[%emt 0:00:09]} Nbd7 {[%emt 0:01:47]} 14. O-O {[%emt 0:00:44]} O-O {[%emt 0:02:44]} 15. c4 {[%emt 0:00:10]} Rac8 {[%emt 0:01:22]} 16. Rc1 {[%emt 0:01:23]} h6 {[%emt 0:05:31]} 17. Be3 {[%emt 0:00:06]} e4 {[%emt 0:20:09]} 18. b4 {[%emt 0:10:04]} a5 {[%emt 0:29:45]} 19. a3 {[%emt 0:04:07]} axb4 {[%emt 0:00:13]} 20. axb4 {[%emt 0:00:07]} Ne5 {[%emt 0:14:11]} 21. Qd4 {[%emt 0:03:38]} Qd7 {[%emt 0:16:51]} 22. h3 {[%emt 0:00:55]} Qf5 {[%emt 0:00:19]} 23. Rfd1 {[%emt 0:03:24]} Qg6 {[%emt 0:01:17]} 24. Kh1 {[%emt 0:00:44]} Rfd8 {[%emt 0:00:55]} 25. Bf4 {[%emt 0:04:13]} Qf5 {[%emt 0:01:01]} 26. Bxe5 {[%emt 0:00:44]} dxe5 {[%emt 0:00:02]} 27. Qe3 {[%emt 0:00:19]} b5 {[%emt 0:00:33]} 28. c5 {[%emt 0:02:55]} Nxd5 {[%emt 0:00:19]} 29. Rxd5 {[%emt 0:00:06]} Rxd5 {[%emt 0:01:50]} 30. Bg4 {[%emt 0:00:06]} Qg6 {[%emt 0:00:11]} 31. Bxc8 {[%emt 0:00:06]} Rd3 {[%emt 0:00:23]} 32. Qe2 {[%emt 0:01:31]} f5 {[%emt 0:01:06]} 33. c6 {[%emt 0:02:26]} f4 {[%emt 0:00:27]} 34. Qg4 {[%emt 0:00:08]} Qd6 {[%emt 0:00:37]} 35. Qe6+ {[%emt 0:00:05]} Kf8 {[%emt 0:00:15]} 36. Qxd6+ {[%emt 0:00:17]} Rxd6 {[%emt 0:00:01]} 37. c7 {[%emt 0:00:18]} e3 {[%emt 0:00:58]} 38. Bg4 {[%emt 0:00:04]} 1-0

[Event "Reykjavik Open 2024"]
[Site "Reykjavik"]
[Date "2024.03.16"]
[Round "3.6"]
[White "Domalchuk-Jonasson, Aleksandr"]
[Black "Belenkaya, Dina"]
[Result "1-0"]
[ECO "A14"]
[WhiteElo "2355"]
[BlackElo "2164"]
[Annotator "TA"]
[PlyCount "81"]
[EventDate "2024.03.12"]
[EventCountry "ISL"]
[SourceTitle "playchess.com"]
[Source "ChessBase"]
[SourceQuality "1"]
[TimeControl "40/5400+30:1800+30"]

{[%evp 13,80,8,32,17,20,18,55,55,60,58,57,58,72,60,75,81,85,90,102,80,108,88,123,118,128,111,131,143,137,133,134,67,83,65,79,75,100,86,109,106,114,102,109,110,153,98,221,237,220,243,229,234,364,367,347,325,681,670,795,782,1273,1237,1156,799,29990,29991,29994,29990,29999]} 1. c4 {[%emt 0:00:06]} e6 {[%emt 0:00:17]} 2. Nf3 {[%emt 0:01:50]} d5 {[%emt 0:00:11]} 3. g3 {[%emt 0:00:04]} Nf6 {[%emt 0:00:14]} 4. Bg2 {[%emt 0:00:11]} Be7 {[%emt 0:00:22]} 5. O-O {[%emt 0:00:36]} c6 {[%emt 0:00:11]} 6. b3 {[%emt 0:03:34]} O-O {[%emt 0:08:59]} 7. Bb2 {[%emt 0:04:26]} a5 {[%emt 0:00:09][%cal Ba7a5,Ba5a4,Ba4a3][%mdl 32]} 8. d4 {[%emt 0:04:36]} a4 {[%emt 0:01:07]} 9. Nbd2 {[%emt 0:00:40]} b5 {[%emt 0:02:09]} 10. c5 {[%emt 0:08:29] Weiß steht etwas besser.} Qa5 {[%emt 0:04:30]} 11. Qc2 {[%emt 0:14:53]} a3 {[%emt 0:02:07]} 12. Bc1 {[%emt 0:00:17]} b4 {[%emt 0:00:56]} 13. e4 {[%emt 0:05:22]} Nfd7 {[%emt 0:31:48]} 14. Re1 {[%emt 0:03:08]} Na6 {[%emt 0:06:15]} 15. Nf1 {[%emt 0:04:40]} Nc7 {[%emt 0:01:12]} 16. Ne3 {[%emt 0:05:24]} Nf6 {[%emt 0:07:56]} 17. Ne5 {[%emt 0:01:31]} Bb7 {[%emt 0:02:40]} 18. Bd2 {[%emt 0:00:51]} Nb5 {[%emt 0:01:04]} 19. Qd3 {[%emt 0:02:42]} Nxd4 {[%emt 0:12:46]} 20. Qxd4 {[%emt 0:02:12]} Bxc5 {[%emt 0:00:13]} 21. Qd3 {[%emt 0:00:10]} dxe4 {[%emt 0:01:29] [#]} 22. Qc2 {[%emt 0:15:58]} (22. Bxe4 Rad8 (22... Rfd8 23. Qc2 $14) 23. Qc2 (23. Bxh7+ $2 Nxh7 24. N5c4 Qb5 $19) 23... Rxd2 (23... Nxe4 24. Qxe4 Rxd2 25. N5c4 $14) 24. Bxh7+ Nxh7 $15) (22. Qe2 $1 $16) 22... Bxe3 $14 {[%emt 0:00:24]} 23. Nc4 {[%emt 0:00:16]} (23. Nxc6 $2 Bxf2+ 24. Kxf2 Ng4+ (24... Qb6+ $2 25. Be3 $19) 25. Kg1 Qb6+ $19) 23... Bxf2+ $1 {[%emt 0:00:48]} 24. Kxf2 {[%emt 0:00:05]} Qa7+ {[%emt 0:07:26]} 25. Be3 {[%emt 0:02:58] Aktives Gegenspiel!} Ng4+ {[%emt 0:00:50]} 26. Kg1 {[%emt 0:00:09]} Nxe3 {[%emt 0:00:07]} 27. Nxe3 {[%emt 0:00:13]} f5 {[%emt 0:01:47]} 28. Qc4 {[%emt 0:00:17][%csl LRb4,LRe6]} Rad8 {[%emt 0:01:08]} 29. Kh1 {[%emt 0:01:01]} ({Und nicht} 29. Qxb4 e5 $11) ({Günstiger ist} 29. Qxe6+ Kh8 30. Kh1) 29... Qa5 {[%emt 0:05:04] Führt Schwarz ins Verderben.} (29... Rfe8 $16) 30. Qxe6+ $18 {[%emt 0:02:06]} Kh8 {[%emt 0:00:04]} 31. Rad1 {[%emt 0:00:18]} Rde8 {[%emt 0:00:40] Wehrt Qe7 ab} 32. Qd7 {[%emt 0:00:31]} Ba8 {[%emt 0:00:31]} (32... Bc8 $142 33. Qxc6 Re6) 33. Rf1 {[%emt 0:01:46]} g6 {[%emt 0:00:13]} 34. Nc4 {[%emt 0:02:37]} Qc5 {[%emt 0:00:09]} (34... Qd8 35. Qa7 Qb8) 35. Nd6 {[%emt 0:01:16]} Rb8 {[%emt 0:00:26]} 36. Qe7 {[%emt 0:01:12]} Kg8 {[%emt 0:01:38] [#] Es drohte Nf7} 37. g4 $1 {[%emt 0:08:05][%mdl 512] Und gxf5 würde nun gewinnen.} Rbe8 {[%emt 0:00:13]} 38. Qd7 {[%emt 0:00:28]} (38. Nxe8 $2 {geht unter.} Qxe7 39. Nd6 e3 $19 (39... fxg4 $2 40. Rfe1 $19)) ({Schwächer ist} 38. Qxe8 Rxe8 39. Nxe8 Qe7 $11) 38... Re5 {[%emt 0:00:40]} 39. gxf5 {[%emt 0:00:27] Weiß setzt Matt.} gxf5 {[%emt 0:00:34]} 40. Bxe4 {[%emt 0:00:26]} f4 {[%emt 0:00:32]} 41. Qxh7# {[%emt 0:00:05] Gewichteter Fehlerwert: Weiß=0.10 (sehr präzise) /Schwarz=0.52.  Fehler:       	Weiß=2     	Schwarz=3     Ungenau:       	---       	Schwarz=4     OK:         	Weiß=11    	Schwarz=8     Bester:       	Weiß=6     	Schwarz=1     Stark:        	---       	Schwarz=1} 1-0

[Event "Reykjavik Open 2024"]
[Site "Reykjavik"]
[Date "2024.03.16"]
[Round "3.7"]
[White "Kjartansson, Gudmundur"]
[Black "Lu, Miaoyi"]
[Result "1/2-1/2"]
[ECO "E05"]
[WhiteElo "2465"]
[BlackElo "2392"]
[Annotator "TA"]
[PlyCount "132"]
[EventDate "2024.03.12"]
[EventCountry "ISL"]
[SourceTitle "playchess.com"]
[Source "ChessBase"]
[SourceQuality "1"]
[TimeControl "40/5400+30:1800+30"]

{[%evp 23,132,10,0,0,14,0,51,-22,-8,-19,-18,-18,0,-16,35,35,26,30,28,22,24,2,2,0,0,0,0,0,0,0,9,0,0,0,0,0,0,0,0,0,0,0,0,0,9,0,152,124,160,160,160,160,160,118,160,76,76,76,76,76,76,76,76,76,76,76,76,76,76,76,76,76,76,76,76,37,37,37,37,37,37,37,37,0,0,0,0,0,0,0,0,0,0,0,0,0,0,0,0,0,0,0,0,0,0,0,0,0,0,0,0]} 1. Nf3 {[%emt 0:00:12]} Nf6 {[%emt 0:00:04]} 2. g3 {[%emt 0:00:27]} d5 {[%emt 0:00:08]} 3. Bg2 {[%emt 0:00:04]} e6 {[%emt 0:00:04]} 4. O-O {[%emt 0:00:09]} Be7 {[%emt 0:00:02]} 5. c4 {[%emt 0:00:24]} O-O {[%emt 0:00:04]} 6. d4 {[%emt 0:00:14]} dxc4 {[%emt 0:00:04]} 7. Qc2 {[%emt 0:00:08]} a6 {[%emt 0:00:05]} 8. a4 $1 {[%emt 0:00:44] 8.a4 is better than 8.Qxc4.} Bd7 {[%emt 0:00:31]} 9. Bg5 {[%emt 0:02:48] E05: Open Catalan: 5 Nf3 Be7.} Bc6 {[%emt 0:02:28]} 10. Nc3 {[%emt 0:06:00]} Bxf3 {[%emt 0:15:00]} 11. Bxf3 {[%emt 0:00:23]} Nc6 {[%emt 0:00:02]} 12. Bxc6 {[%emt 0:13:09]} bxc6 {[%emt 0:00:03]} 13. e3 {[%emt 0:00:56]} Rb8 {[%emt 0:05:12]} 14. a5 {[%emt 0:09:23]} Rb4 $146 {[%emt 0:10:24]} (14... c5 $11) ({Predecessor:} 14... Ne8 15. Bxe7 Qxe7 16. Ne4 Nd6 17. Nc5 Rb5 18. Nxa6 Ra8 19. Nc5 Rbxa5 20. Rxa5 Rxa5 {1-0 Bates,R (2372)-Lim,Z (2184) London Classic op 10th 2018 (7)}) 15. Ra4 {[%emt 0:07:20]} (15. Bxf6 $14 Bxf6 16. Na2) 15... Qb8 {[%emt 0:01:42]} 16. Rxb4 {[%emt 0:19:20]} Qxb4 {[%emt 0:00:04]} 17. Ra1 {[%emt 0:05:29]} Rb8 {[%emt 0:00:02]} 18. Bxf6 $1 {[%emt 0:04:29]} Bxf6 {[%emt 0:10:34]} (18... gxf6 $11 19. Qe4 Qb7 (19... Qxb2 $2 {too greedy.} 20. Rb1 $18)) 19. Ra4 $14 {[%emt 0:01:38]} Qxb2 {[%emt 0:00:04]} 20. Qxb2 {[%emt 0:00:12]} Rxb2 {[%emt 0:00:02]} 21. Rxc4 {[%emt 0:00:06]} e5 {[%emt 0:00:49]} 22. Rxc6 {[%emt 0:12:31]} (22. Ne4 {simplifies} exd4 23. Nxf6+ gxf6 24. exd4 Rb5 25. Rxc6 Rxa5 26. Rxf6 Kg7 27. Rc6) 22... exd4 {[%emt 0:00:18]} 23. Nd5 {[%emt 0:05:50]} d3 {[%emt 0:07:29]} 24. Rxc7 {[%emt 0:01:18]} h5 {[%emt 0:00:59]} 25. Nxf6+ {[%emt 0:04:21]} gxf6 {[%emt 0:00:02]} 26. Rd7 {[%emt 0:02:01]} d2 {[%emt 0:04:58]} 27. Kf1 {[%emt 0:01:12]} Ra2 {[%emt 0:04:47]} 28. Rd5 {[%emt 0:02:18]} Rxa5 {[%emt 0:00:36]} 29. Rxd2 {[%emt 0:00:01]} Kg7 {[%emt 0:00:20]} 30. Rd6 {[%emt 0:00:11]} Ra1+ {[%emt 0:00:38]} 31. Kg2 {[%emt 0:00:07]} a5 {[%emt 0:00:02]} 32. Ra6 {[%emt 0:00:08]} a4 {[%emt 0:00:01]} 33. Kf3 {[%emt 0:01:25]} a3 {[%emt 0:00:06]} 34. h3 {[%emt 0:01:35]} a2 $2 {[%emt 0:01:11]} ({Better is} 34... Ra2 $11) 35. h4 $16 {[%emt 0:00:39]} f5 {[%emt 0:09:10]} 36. Kf4 {[%emt 0:00:22]} Rb1 {[%emt 0:00:03]} 37. Rxa2 {[%emt 0:00:09]} Kg6 {[%emt 0:00:01]} 38. Ra4 {[%emt 0:01:03]} Rb2 {[%emt 0:01:10]} 39. f3 {[%emt 0:00:26]} (39. Ra6+ $142 Kg7 40. f3 (40. Kxf5 Rxf2+ 41. Kg5 Rf3 $11)) 39... f6 $16 {[%emt 0:00:41]} 40. Rd4 {[%emt 0:00:12]} Rb3 {[%emt 0:00:41]} 41. Rc4 {[%emt 0:30:09]} Ra3 {[%emt 0:30:04]} 42. Rb4 {[%emt 0:00:04]} Rc3 {[%emt 0:00:06]} 43. e4 {[%emt 0:00:00]} fxe4 {[%emt 0:00:00]} 44. Rxe4 {[%emt 0:00:00]} Rc1 {[%emt 0:00:00]} 45. Rd4 {[%emt 0:00:00]} Rh1 {[%emt 0:00:00]} 46. Rd5 {[%emt 0:00:00]} Rh3 {[%emt 0:00:00]} 47. Rd1 {[%emt 0:00:00]} Rh2 {[%emt 0:00:00]} 48. Rg1 {[%emt 0:00:00]} Rh3 {[%emt 0:00:00]} 49. g4 {[%emt 0:00:00]} hxg4 {[%emt 0:00:00]} 50. Kxg4 {[%emt 0:00:00]} Rh2 {[%emt 0:00:00]} 51. Kg3 {[%emt 0:00:00]} Ra2 {[%emt 0:00:00]} 52. Kf4+ {[%emt 0:00:00]} Kf7 {[%emt 0:00:00]} 53. h5 {[%emt 0:00:00]} Ra4+ {[%emt 0:00:00]} 54. Kg3 {[%emt 0:00:00]} Kg7 {[%emt 0:00:00]} 55. f4 {[%emt 0:00:00]} Kh6 {[%emt 0:00:00]} 56. Kg4 {[%emt 0:00:00]} Ra5 {[%emt 0:00:00]} 57. f5 {[%emt 0:00:00]} Ra4+ {[%emt 0:00:00]} 58. Kf3 {[%emt 0:00:00]} Kxh5 {[%emt 0:00:00]} 59. Rg6 {[%emt 0:00:00]} Rb4 {[%emt 0:00:00]} 60. Ke3 {[%emt 0:00:00]} Ra4 {[%emt 0:00:00]} 61. Rxf6 {[%emt 0:00:00]} Kg5 {[%emt 0:00:00]} 62. Rf8 {[%emt 0:00:00]} Rb4 {[%emt 0:00:00]} 63. f6 {[%emt 0:00:00]} Kg6 {[%emt 0:00:00]} 64. Kf3 {[%emt 0:00:00]} Rb6 {[%emt 0:00:00]} 65. Ke3 {[%emt 0:00:00]} Rxf6 {[%emt 0:00:00]} 66. Rxf6+ {[%emt 0:00:00]} Kxf6 {[%emt 0:00:00]} 1/2-1/2

[Event "Reykjavik Open 2024"]
[Site "Reykjavik"]
[Date "2024.03.16"]
[Round "3.8"]
[White "Jin, Yueheng"]
[Black "Stefansson, Vignir Vatnar"]
[Result "1/2-1/2"]
[ECO "E05"]
[WhiteElo "2404"]
[BlackElo "2464"]
[Annotator "TA"]
[PlyCount "59"]
[EventDate "2024.03.12"]
[EventCountry "ISL"]
[SourceTitle "playchess.com"]
[Source "ChessBase"]
[SourceQuality "1"]
[TimeControl "40/5400+30:1800+30"]

{[%evp 13,59,0,17,35,8,15,7,41,45,12,30,0,0,4,21,0,0,0,0,0,0,0,8,0,27,14,31,12,21,8,4,8,11,5,16,18,16,0,0,0,0,0,0,0,0,0,3,3]} 1. d4 {[%emt 0:00:04]} Nf6 {[%emt 0:00:14]} 2. c4 {[%emt 0:00:06]} e6 {[%emt 0:00:06]} 3. g3 {[%emt 0:00:05]} d5 {[%emt 0:00:08]} 4. Bg2 {[%emt 0:00:09]} Be7 {[%emt 0:00:09]} 5. Nf3 {[%emt 0:00:06]} O-O {[%emt 0:00:08]} 6. O-O {[%emt 0:00:10]} dxc4 {[%emt 0:00:06]} 7. Qc2 {[%emt 0:00:07]} b5 {[%emt 0:00:07]} 8. a4 {[%emt 0:00:11]} b4 {[%emt 0:00:06]} 9. Nfd2 {[%emt 0:02:29]} (9. Qxc4 Ba6 10. Qc2 Nbd7) 9... Nd5 {[%emt 0:00:20]} 10. Nxc4 {[%emt 0:01:52]} ({Ein No Go ist} 10. Qxc4 Ba6 11. Qc2 c5 $17 (11... Bxe2 12. Re1 $15)) 10... c5 {[%emt 0:00:21]} 11. dxc5 {[%emt 0:07:01]} Bxc5 {[%emt 0:02:37]} 12. Rd1 {[%emt 0:21:00] [#] e4 wäre nun fies.} Nd7 $1 {[%emt 0:01:10]} 13. e4 {[%emt 0:05:06]} ({Doch nicht} 13. Bxd5 exd5 14. Be3 Bb7 (14... dxc4 15. Bxc5 Nxc5 16. Rxd8 $16) 15. Bxc5 Nxc5 $17) 13... N5b6 {[%emt 0:01:03]} 14. Be3 {[%emt 0:07:32] Schwarz muss nun Bxc5 beachten.} Qe7 {[%emt 0:05:27] ...Nxc4 ist eine echte Drohung.} 15. Nbd2 {[%emt 0:05:07]} Ba6 {[%emt 0:06:16]} 16. Nxb6 {[%emt 0:07:16]} axb6 {[%emt 0:02:31]} 17. Bxc5 {[%emt 0:00:06]} Nxc5 {[%emt 0:00:47]} 18. Nb3 {[%emt 0:00:58]} Rfc8 {[%emt 0:01:01]} 19. Nxc5 {[%emt 0:00:14]} bxc5 {[%emt 0:02:18]} 20. e5 {[%emt 0:04:13]} Bb7 {[%emt 0:02:43] Die Stellung ist ausgeglichen.} 21. Bxb7 {[%emt 0:00:23]} Qxb7 {[%emt 0:00:07]} 22. Qc4 {[%emt 0:01:03]} Qa6 {[%emt 0:00:28] Wehrt Rd6 ab} 23. Rdc1 {[%emt 0:06:37]} Qxc4 {[%emt 0:01:17]} 24. Rxc4 $11 {[%emt 0:00:02][%mdl 4096] Endspiel. KRR-KRR} Ra5 {[%emt 0:01:51]} 25. Rac1 {[%emt 0:11:03]} (25. Rd1 $5) 25... Rxa4 {[%emt 0:02:16]} 26. Rxc5 {[%emt 0:00:04]} Rxc5 {[%emt 0:00:06]} 27. Rxc5 {[%emt 0:00:04][%cal Rc5c8] [#]} g5 {[%emt 0:01:47]} 28. Rb5 {[%emt 0:00:18]} Ra1+ {[%emt 0:00:08]} 29. Kg2 {[%emt 0:00:04]} Re1 {[%emt 0:00:06]} 30. Rxb4 {[%emt 0:01:05] Gewichteter Fehlerwert: Weiß=0.05 (makellos) /Schwarz=0.04 (makellos) .  Ungenau:       	Weiß=1     	Schwarz=1     OK:         	Weiß=9     	Schwarz=9     Bester:       	Weiß=1     	---        Stark:        	---       	Schwarz=1} 1/2-1/2